[Event "Titled Tuesday Blitz April 26 Early 2022"]
[White "Kaminski, Victor"]
[Black "Seifert, Henryk"]
[WhiteFideId "1131630"]
[BlackFideId "1100963"]
[WhiteElo "2181"]
[BlackElo "2120"]
[Result "0-1"]
[Round "07"]
[TimeControl "180+1"]
[Date "2022.04.26"]
[WhiteClock "0:00:06"]
[BlackClock "0:00:02"]

1. e4 {[%clk 0:02:58]}  e6 {[%clk 0:03:00]} 2. d3 {[%clk 0:02:57]}  d5 {[%clk 0:02:59]} 3. Nd2 {[%clk 0:02:58]}  Nf6 {[%clk 0:02:58]} 4. g3 {[%clk 0:02:58]}  c5 {[%clk 0:02:54]} 5. Bg2 {[%clk 0:02:57]}  Nc6 {[%clk 0:02:54]} 6. Ngf3 {[%clk 0:02:49]}  Be7 {[%clk 0:02:53]} 7. O-O {[%clk 0:02:50]}  b6 {[%clk 0:02:50]} 8. Re1 {[%clk 0:02:48]}  Bb7 {[%clk 0:02:45]} 9. e5 {[%clk 0:02:45]}  Nd7 {[%clk 0:02:45]} 10. Qe2 {[%clk 0:02:44]}  Qc7 {[%clk 0:02:44]} 11. Nf1 {[%clk 0:02:44]}  O-O-O {[%clk 0:02:30]} 12. h4 {[%clk 0:02:39]}  h6 {[%clk 0:02:28]} 13. Bf4 {[%clk 0:02:37]}  Rdg8 {[%clk 0:02:25]} 14. h5 {[%clk 0:02:30]}  g5 {[%clk 0:02:19]} 15. hxg6 {[%clk 0:02:31]}  fxg6 {[%clk 0:02:19]} 16. c4 {[%clk 0:02:25]}  g5 {[%clk 0:02:13]} 17. Bd2 {[%clk 0:02:01]}  g4 {[%clk 0:02:04]} 18. N3h2 {[%clk 0:02:00]}  Nd4 {[%clk 0:02:01]} 19. Qd1 {[%clk 0:01:57]}  dxc4 {[%clk 0:01:45]} 20. dxc4 {[%clk 0:01:50]}  Bxg2 {[%clk 0:01:42]} 21. Kxg2 {[%clk 0:01:50]}  Qc6+ {[%clk 0:01:33]} 22. f3 {[%clk 0:01:45]}  h5 {[%clk 0:01:19]} 23. Bf4 {[%clk 0:01:37]}  h4 {[%clk 0:01:06]} 24. Qd3 {[%clk 0:01:15]}  hxg3 {[%clk 0:01:00]} 25. Bxg3 {[%clk 0:01:09]}  Rxh2+ {[%clk 0:00:50]} 26. Nxh2 {[%clk 0:01:07]}  gxf3+ {[%clk 0:00:44]} 27. Kf2 {[%clk 0:00:49]}  Bh4 {[%clk 0:00:43]} 28. Rg1 {[%clk 0:00:36]}  Rxg3 {[%clk 0:00:33]} 29. Rxg3 {[%clk 0:00:33]}  Nxe5 {[%clk 0:00:34]} 30. Qh7 {[%clk 0:00:27]}  Ng4+ {[%clk 0:00:33]} 31. Nxg4 {[%clk 0:00:24]}  Bxg3+ {[%clk 0:00:32]} 32. Kxg3 {[%clk 0:00:24]}  Nf5+ {[%clk 0:00:31]} 33. Kf2 {[%clk 0:00:20]}  Qe4 {[%clk 0:00:27]} 34. Qh8+ {[%clk 0:00:05]}  Kb7 {[%clk 0:00:25]} 35. Qh7+ {[%clk 0:00:04]}  Ka6 {[%clk 0:00:25]} 36. Re1 {[%clk 0:00:04]}  Qxg4 {[%clk 0:00:24]} 37. Qh2 {[%clk 0:00:04]}  Nd4 {[%clk 0:00:17]} 38. Qg3 {[%clk 0:00:03]}  Qf5 {[%clk 0:00:16]} 39. Re5 {[%clk 0:00:03]}  Qc2+ {[%clk 0:00:16]} 40. Kg1 {[%clk 0:00:03]}  Ne2+ {[%clk 0:00:15]} 41. Rxe2 {[%clk 0:00:04]}  fxe2 {[%clk 0:00:14]} 42. Kf2 {[%clk 0:00:04]}  Qd1 {[%clk 0:00:13]} 43. Qa3+ {[%clk 0:00:03]}  Kb7 {[%clk 0:00:11]} 44. Qf3+ {[%clk 0:00:04]}  Kc7 {[%clk 0:00:10]} 45. Qf4+ {[%clk 0:00:04]}  Kd7 {[%clk 0:00:10]} 46. Qf7+ {[%clk 0:00:04]}  Kd6 {[%clk 0:00:09]} 47. Qf8+ {[%clk 0:00:04]}  Ke5 {[%clk 0:00:09]} 48. Qg7+ {[%clk 0:00:04]}  Ke4 {[%clk 0:00:09]} 49. Qg6+ {[%clk 0:00:04]}  Kd4 {[%clk 0:00:09]} 50. Qxe6 {[%clk 0:00:03]}  Kd3 {[%clk 0:00:07]} 51. Qd5+ {[%clk 0:00:03]}  Kc2 {[%clk 0:00:07]} 52. Qe4+ {[%clk 0:00:02]}  Kxb2 {[%clk 0:00:07]} 53. a4 {[%clk 0:00:02]}  Qd2 {[%clk 0:00:05]} 54. Qe5+ {[%clk 0:00:02]}  Kb3 {[%clk 0:00:04]} 55. Qe7 {[%clk 0:00:02]}  e1=Q+ {[%clk 0:00:04]} 56. Kf3 {[%clk 0:00:03]}  Qf1+ {[%clk 0:00:03]} 57. Kg4 {[%clk 0:00:04]}  Qdg2+ {[%clk 0:00:03]} 58. Kh5 {[%clk 0:00:04]}  Qfh1+ {[%clk 0:00:04]} 59. Qh4 {[%clk 0:00:04]}  Qf3+ {[%clk 0:00:03]} 60. Kh6 {[%clk 0:00:04]}  Qxh4+ {[%clk 0:00:02]} 61. Kg6 {[%clk 0:00:05]}  Qhg4+ {[%clk 0:00:02]} 62. Kh7 {[%clk 0:00:06]}  Qfh3# {[%clk 0:00:02]} 0-1


[Site "https://www.chess.com"]

[Event "Titled Tuesday Blitz April 26 Early 2022"]
[White "Kamsky, Gata"]
[Black "Seemann, Jakub"]
[WhiteFideId "2000024"]
[BlackFideId "21874697"]
[WhiteElo "2645"]
[BlackElo "2003"]
[Result "1-0"]
[Round "07"]
[TimeControl "180+1"]
[Date "2022.04.26"]
[WhiteClock "0:01:31"]
[BlackClock "0:00:03"]

1. d4 {[%clk 0:03:00]}  Nf6 {[%clk 0:02:58]} 2. Nf3 {[%clk 0:03:00]}  e6 {[%clk 0:02:58]} 3. Bf4 {[%clk 0:02:57]}  d5 {[%clk 0:02:55]} 4. e3 {[%clk 0:02:57]}  c5 {[%clk 0:02:55]} 5. c3 {[%clk 0:02:56]}  Bd6 {[%clk 0:02:53]} 6. Bb5+ {[%clk 0:02:55]}  Nc6 {[%clk 0:02:49]} 7. Bxc6+ {[%clk 0:02:55]}  bxc6 {[%clk 0:02:49]} 8. Bxd6 {[%clk 0:02:55]}  Qxd6 {[%clk 0:02:49]} 9. Qa4 {[%clk 0:02:53]}  O-O {[%clk 0:02:49]} 10. Nbd2 {[%clk 0:02:54]}  cxd4 {[%clk 0:02:43]} 11. cxd4 {[%clk 0:02:53]}  c5 {[%clk 0:02:41]} 12. Qa3 {[%clk 0:02:52]}  Qa6 {[%clk 0:01:51]} 13. Qxa6 {[%clk 0:02:34]}  Bxa6 {[%clk 0:01:52]} 14. dxc5 {[%clk 0:02:34]}  Rfc8 {[%clk 0:01:53]} 15. b4 {[%clk 0:02:25]}  Rab8 {[%clk 0:01:52]} 16. a3 {[%clk 0:02:24]}  Nd7 {[%clk 0:01:43]} 17. Nb3 {[%clk 0:02:13]}  Bd3 {[%clk 0:00:58]} 18. Kd2 {[%clk 0:02:10]}  Be4 {[%clk 0:00:57]} 19. Rhc1 {[%clk 0:02:04]}  Bxf3 {[%clk 0:00:36]} 20. gxf3 {[%clk 0:02:02]}  Ne5 {[%clk 0:00:37]} 21. f4 {[%clk 0:01:43]}  Nc4+ {[%clk 0:00:36]} 22. Rxc4 {[%clk 0:01:43]}  dxc4 {[%clk 0:00:36]} 23. Nd4 {[%clk 0:01:42]}  a5 {[%clk 0:00:32]} 24. Kc3 {[%clk 0:01:41]}  Kf8 {[%clk 0:00:19]} 25. Kxc4 {[%clk 0:01:41]}  Ke7 {[%clk 0:00:20]} 26. b5 {[%clk 0:01:40]}  Kd7 {[%clk 0:00:18]} 27. Rd1 {[%clk 0:01:36]}  Kc7 {[%clk 0:00:17]} 28. b6+ {[%clk 0:01:35]}  Kb7 {[%clk 0:00:17]} 29. Kb5 {[%clk 0:01:35]}  Ka8 {[%clk 0:00:08]} 30. c6 {[%clk 0:01:35]}  Rd8 {[%clk 0:00:02]} 31. c7 {[%clk 0:01:34]}  Rd5+ {[%clk 0:00:03]} 32. Ka6 {[%clk 0:01:31]} 1-0


[Site "https://www.chess.com"]

[Event "Titled Tuesday Blitz April 26 Early 2022"]
[White "Kejzar, Petra"]
[Black "Khamdamova, Afruza"]
[WhiteFideId "14610213"]
[BlackFideId "14210444"]
[WhiteElo "2003"]
[BlackElo "1660"]
[Result "0-1"]
[Round "07"]
[TimeControl "180+1"]
[Date "2022.04.26"]
[WhiteClock "0:01:09"]
[BlackClock "0:02:05"]

1. b3 {[%clk 0:03:00]}  e5 {[%clk 0:02:58]} 2. Bb2 {[%clk 0:03:01]}  Nc6 {[%clk 0:02:59]} 3. e3 {[%clk 0:02:58]}  d5 {[%clk 0:02:58]} 4. c4 {[%clk 0:02:57]}  d4 {[%clk 0:02:58]} 5. Nf3 {[%clk 0:02:56]}  Bg4 {[%clk 0:02:54]} 6. exd4 {[%clk 0:02:55]}  Nxd4 {[%clk 0:02:52]} 7. Bxd4 {[%clk 0:02:51]}  exd4 {[%clk 0:02:52]} 8. d3 {[%clk 0:02:48]}  Nf6 {[%clk 0:02:50]} 9. Nbd2 {[%clk 0:02:47]}  c5 {[%clk 0:02:50]} 10. Qe2+ {[%clk 0:02:40]}  Be7 {[%clk 0:02:49]} 11. Ne4 {[%clk 0:02:40]}  O-O {[%clk 0:02:48]} 12. h3 {[%clk 0:02:36]}  Nxe4 {[%clk 0:02:46]} 13. dxe4 {[%clk 0:02:27]}  Bxf3 {[%clk 0:02:44]} 14. Qxf3 {[%clk 0:02:23]}  Qa5+ {[%clk 0:02:43]} 15. Kd1 {[%clk 0:02:20]}  Bg5 {[%clk 0:02:25]} 16. Qd3 {[%clk 0:02:10]}  Rad8 {[%clk 0:02:20]} 17. h4 {[%clk 0:02:08]}  Bh6 {[%clk 0:02:20]} 18. Kc2 {[%clk 0:01:55]}  f5 {[%clk 0:02:10]} 19. exf5 {[%clk 0:01:48]}  Rxf5 {[%clk 0:02:08]} 20. f3 {[%clk 0:01:37]}  Re5 {[%clk 0:02:07]} 21. Be2 {[%clk 0:01:34]}  Re3 {[%clk 0:02:07]} 22. Qd2 {[%clk 0:01:09]}  Rc3+ {[%clk 0:02:05]} 0-1


[Site "https://www.chess.com"]

[Event "Titled Tuesday Blitz April 26 Early 2022"]
[White "Kim, Sergey"]
[Black "Guseva, Marina"]
[WhiteFideId "13700570"]
[BlackFideId "4149351"]
[WhiteElo "2545"]
[BlackElo "2071"]
[Result "0-1"]
[Round "07"]
[TimeControl "180+1"]
[Date "2022.04.26"]
[WhiteClock "0:01:28"]
[BlackClock "0:00:58"]

1. d4 {[%clk 0:03:00]}  d5 {[%clk 0:02:57]} 2. c4 {[%clk 0:03:00]}  c6 {[%clk 0:02:57]} 3. Nf3 {[%clk 0:03:00]}  Nf6 {[%clk 0:02:57]} 4. Qc2 {[%clk 0:03:00]}  a6 {[%clk 0:02:53]} 5. Nbd2 {[%clk 0:03:00]}  g6 {[%clk 0:02:45]} 6. e3 {[%clk 0:03:00]}  Bg7 {[%clk 0:02:45]} 7. Bd3 {[%clk 0:03:00]}  O-O {[%clk 0:02:45]} 8. O-O {[%clk 0:03:00]}  b5 {[%clk 0:02:39]} 9. b3 {[%clk 0:03:00]}  Nbd7 {[%clk 0:02:21]} 10. Bb2 {[%clk 0:03:00]}  Bb7 {[%clk 0:02:20]} 11. c5 {[%clk 0:03:00]}  Re8 {[%clk 0:02:11]} 12. h3 {[%clk 0:03:00]}  Nf8 {[%clk 0:02:05]} 13. Ne5 {[%clk 0:02:59]}  N6d7 {[%clk 0:02:04]} 14. f4 {[%clk 0:02:59]}  f6 {[%clk 0:02:04]} 15. Nef3 {[%clk 0:02:56]}  f5 {[%clk 0:01:56]} 16. Ne5 {[%clk 0:02:54]}  Nxe5 {[%clk 0:01:54]} 17. fxe5 {[%clk 0:02:50]}  Bh6 {[%clk 0:01:51]} 18. Rae1 {[%clk 0:02:49]}  a5 {[%clk 0:01:46]} 19. a3 {[%clk 0:02:36]}  b4 {[%clk 0:01:38]} 20. a4 {[%clk 0:02:36]}  Ba6 {[%clk 0:01:37]} 21. Bxa6 {[%clk 0:02:32]}  Rxa6 {[%clk 0:01:37]} 22. Nf3 {[%clk 0:02:23]}  Ra7 {[%clk 0:01:35]} 23. Bc1 {[%clk 0:02:23]}  e6 {[%clk 0:01:32]} 24. Kh2 {[%clk 0:02:22]}  g5 {[%clk 0:01:31]} 25. Qf2 {[%clk 0:02:17]}  g4 {[%clk 0:01:23]} 26. hxg4 {[%clk 0:02:12]}  fxg4 {[%clk 0:01:22]} 27. Qg3 {[%clk 0:02:12]}  Rg7 {[%clk 0:01:20]} 28. Ng1 {[%clk 0:01:47]}  Bg5 {[%clk 0:01:19]} 29. Qxg4 {[%clk 0:01:34]}  Bh4 {[%clk 0:01:15]} 30. Qf3 {[%clk 0:01:28]}  Bxe1 {[%clk 0:00:58]} 31. Rxe1 {[%clk 0:01:28]}  Qh4+ {[%clk 0:00:58]} 0-1


[Site "https://www.chess.com"]

[Event "Titled Tuesday Blitz April 26 Early 2022"]
[White "Kozak, Adam"]
[Black "Tanenbaum, Zachary"]
[WhiteFideId "753246"]
[BlackFideId "2060850"]
[WhiteElo "2459"]
[BlackElo "2168"]
[Result "1-0"]
[Round "07"]
[TimeControl "180+1"]
[Date "2022.04.26"]
[WhiteClock "0:02:20"]
[BlackClock "0:01:31"]

1. c4 {[%clk 0:02:55]}  e5 {[%clk 0:03:00]} 2. Nc3 {[%clk 0:02:54]}  Nf6 {[%clk 0:03:00]} 3. d3 {[%clk 0:02:55]}  Nc6 {[%clk 0:03:00]} 4. a3 {[%clk 0:02:55]}  a6 {[%clk 0:02:58]} 5. g3 {[%clk 0:02:54]}  Bc5 {[%clk 0:02:58]} 6. Bg2 {[%clk 0:02:54]}  d6 {[%clk 0:02:59]} 7. Nf3 {[%clk 0:02:54]}  O-O {[%clk 0:02:59]} 8. Bg5 {[%clk 0:02:54]}  h6 {[%clk 0:02:51]} 9. Bxf6 {[%clk 0:02:54]}  Qxf6 {[%clk 0:02:52]} 10. O-O {[%clk 0:02:54]}  Bf5 {[%clk 0:02:51]} 11. Nd2 {[%clk 0:02:47]}  Qe6 {[%clk 0:02:46]} 12. Nd5 {[%clk 0:02:45]}  Rac8 {[%clk 0:02:40]} 13. Rb1 {[%clk 0:02:44]}  Bh3 {[%clk 0:02:34]} 14. Bxh3 {[%clk 0:02:44]}  Qxh3 {[%clk 0:02:35]} 15. b4 {[%clk 0:02:44]}  Ba7 {[%clk 0:02:34]} 16. b5 {[%clk 0:02:45]}  axb5 {[%clk 0:02:14]} 17. cxb5 {[%clk 0:02:43]}  Qe6 {[%clk 0:02:07]} 18. bxc6 {[%clk 0:02:32]}  Qxd5 {[%clk 0:02:07]} 19. cxb7 {[%clk 0:02:33]}  Rb8 {[%clk 0:02:07]} 20. Qb3 {[%clk 0:02:33]}  Qxb3 {[%clk 0:02:07]} 21. Rxb3 {[%clk 0:02:34]}  Bb6 {[%clk 0:02:00]} 22. a4 {[%clk 0:02:34]}  d5 {[%clk 0:02:00]} 23. Ra1 {[%clk 0:02:29]}  Ba5 {[%clk 0:01:58]} 24. Nf3 {[%clk 0:02:27]}  f6 {[%clk 0:01:48]} 25. Rb5 {[%clk 0:02:26]}  Bc3 {[%clk 0:01:47]} 26. Ra3 {[%clk 0:02:22]}  d4 {[%clk 0:01:47]} 27. a5 {[%clk 0:02:22]}  c6 {[%clk 0:01:44]} 28. Rb6 {[%clk 0:02:22]}  f5 {[%clk 0:01:31]} 29. Nxe5 {[%clk 0:02:20]} 1-0


[Site "https://www.chess.com"]

[Event "Titled Tuesday Blitz April 26 Early 2022"]
[White "Kozak, Antoni"]
[Black "Matveeva, Olga"]
[WhiteFideId "21832030"]
[BlackFideId "24107018"]
[WhiteElo "2236"]
[BlackElo "2083"]
[Result "1-0"]
[Round "07"]
[TimeControl "180+1"]
[Date "2022.04.26"]
[WhiteClock "0:02:50"]
[BlackClock "0:02:14"]

1. Nf3 {[%clk 0:03:00]}  e6 {[%clk 0:02:59]} 2. d4 {[%clk 0:03:00]}  d5 {[%clk 0:02:58]} 3. e3 {[%clk 0:03:00]}  Nf6 {[%clk 0:02:58]} 4. Bd3 {[%clk 0:03:01]}  c5 {[%clk 0:02:57]} 5. b3 {[%clk 0:03:02]}  Nc6 {[%clk 0:02:57]} 6. Bb2 {[%clk 0:03:02]}  cxd4 {[%clk 0:02:55]} 7. exd4 {[%clk 0:03:02]}  Be7 {[%clk 0:02:53]} 8. Nbd2 {[%clk 0:03:01]}  O-O {[%clk 0:02:52]} 9. a3 {[%clk 0:03:02]}  a6 {[%clk 0:02:50]} 10. Qe2 {[%clk 0:03:02]}  b5 {[%clk 0:02:49]} 11. Ne5 {[%clk 0:03:02]}  Bb7 {[%clk 0:02:44]} 12. f4 {[%clk 0:03:00]}  Nd7 {[%clk 0:02:31]} 13. Ndf3 {[%clk 0:02:55]}  f6 {[%clk 0:02:26]} 14. Nxc6 {[%clk 0:02:54]}  Bxc6 {[%clk 0:02:25]} 15. Qxe6+ {[%clk 0:02:55]}  Kh8 {[%clk 0:02:16]} 16. Qxc6 {[%clk 0:02:55]}  Re8 {[%clk 0:02:14]} 17. O-O {[%clk 0:02:50]} 1-0


[Site "https://www.chess.com"]

[Event "Titled Tuesday Blitz April 26 Early 2022"]
[White "Koziorowicz, Michal"]
[Black "Bethke, Richard"]
[WhiteFideId "21809194"]
[BlackFideId "12959243"]
[WhiteElo "2235"]
[BlackElo "2539"]
[Result "1-0"]
[Round "07"]
[TimeControl "180+1"]
[Date "2022.04.26"]
[WhiteClock "0:01:33"]
[BlackClock "0:01:32"]

1. e4 {[%clk 0:03:00]}  c5 {[%clk 0:03:00]} 2. Nf3 {[%clk 0:03:00]}  d6 {[%clk 0:03:00]} 3. Bb5+ {[%clk 0:03:01]}  Bd7 {[%clk 0:03:00]} 4. Bxd7+ {[%clk 0:03:00]}  Qxd7 {[%clk 0:03:01]} 5. O-O {[%clk 0:03:01]}  Nf6 {[%clk 0:03:00]} 6. Re1 {[%clk 0:03:01]}  Nc6 {[%clk 0:03:00]} 7. c3 {[%clk 0:03:02]}  e6 {[%clk 0:03:00]} 8. d4 {[%clk 0:03:03]}  cxd4 {[%clk 0:03:01]} 9. cxd4 {[%clk 0:03:04]}  d5 {[%clk 0:03:01]} 10. e5 {[%clk 0:03:04]}  Ne4 {[%clk 0:03:02]} 11. Nbd2 {[%clk 0:03:05]}  Nxd2 {[%clk 0:03:02]} 12. Bxd2 {[%clk 0:03:06]}  Be7 {[%clk 0:03:02]} 13. Rc1 {[%clk 0:03:05]}  O-O {[%clk 0:03:02]} 14. a3 {[%clk 0:03:04]}  Rfc8 {[%clk 0:03:02]} 15. Rc3 {[%clk 0:03:04]}  b5 {[%clk 0:03:02]} 16. Rd3 {[%clk 0:03:03]}  b4 {[%clk 0:03:00]} 17. a4 {[%clk 0:03:03]}  Na5 {[%clk 0:03:00]} 18. b3 {[%clk 0:03:04]}  Rc7 {[%clk 0:02:59]} 19. h4 {[%clk 0:02:55]}  Rac8 {[%clk 0:02:59]} 20. Ng5 {[%clk 0:02:55]}  h6 {[%clk 0:02:58]} 21. Nh3 {[%clk 0:02:53]}  Rc2 {[%clk 0:02:51]} 22. Qh5 {[%clk 0:02:47]}  Rxd2 {[%clk 0:02:44]} 23. Rxd2 {[%clk 0:02:48]}  Nxb3 {[%clk 0:02:45]} 24. Rd3 {[%clk 0:02:46]}  Rc3 {[%clk 0:02:38]} 25. Ree3 {[%clk 0:02:42]}  Qxa4 {[%clk 0:02:29]} 26. Kh2 {[%clk 0:02:21]}  Qa1 {[%clk 0:02:20]} 27. Rf3 {[%clk 0:02:17]}  g6 {[%clk 0:02:15]} 28. Qxh6 {[%clk 0:02:17]}  Rxd3 {[%clk 0:02:08]} 29. Rxd3 {[%clk 0:02:17]}  Nxd4 {[%clk 0:02:09]} 30. h5 {[%clk 0:01:54]}  Nf5 {[%clk 0:01:48]} 31. Qf4 {[%clk 0:01:49]}  gxh5 {[%clk 0:01:47]} 32. Ng1 {[%clk 0:01:36]}  f6 {[%clk 0:01:43]} 33. Nf3 {[%clk 0:01:35]}  fxe5 {[%clk 0:01:43]} 34. Nxe5 {[%clk 0:01:33]}  Qxe5 {[%clk 0:01:32]} 35. Qxe5 {[%clk 0:01:32]}  Bd6 {[%clk 0:01:32]} 36. Rg3+ {[%clk 0:01:33]} 1-0


[Site "https://www.chess.com"]

[Event "Titled Tuesday Blitz April 26 Early 2022"]
[White "Legenia, Artem"]
[Black "Melikhov, Evgeny V."]
[WhiteFideId "14136945"]
[BlackFideId "4122046"]
[WhiteElo "1936"]
[BlackElo "1931"]
[Result "0-1"]
[Round "07"]
[TimeControl "180+1"]
[Date "2022.04.26"]
[WhiteClock "0:02:36"]
[BlackClock "0:01:35"]

1. b4 {[%clk 0:03:00]}  e5 {[%clk 0:02:55]} 2. a3 {[%clk 0:03:00]}  d6 {[%clk 0:02:55]} 3. Bb2 {[%clk 0:03:00]}  f5 {[%clk 0:02:55]} 4. e3 {[%clk 0:03:01]}  Nf6 {[%clk 0:02:55]} 5. Nf3 {[%clk 0:03:01]}  g6 {[%clk 0:02:55]} 6. Be2 {[%clk 0:03:01]}  Bg7 {[%clk 0:02:55]} 7. O-O {[%clk 0:03:01]}  O-O {[%clk 0:02:55]} 8. d4 {[%clk 0:03:02]}  e4 {[%clk 0:02:55]} 9. Nfd2 {[%clk 0:03:02]}  d5 {[%clk 0:02:50]} 10. c4 {[%clk 0:03:02]}  c6 {[%clk 0:02:50]} 11. b5 {[%clk 0:03:03]}  Be6 {[%clk 0:02:48]} 12. Nc3 {[%clk 0:03:03]}  Nbd7 {[%clk 0:02:43]} 13. a4 {[%clk 0:03:03]}  a6 {[%clk 0:02:41]} 14. a5 {[%clk 0:03:03]}  axb5 {[%clk 0:02:38]} 15. cxb5 {[%clk 0:03:02]}  Rxa5 {[%clk 0:02:09]} 16. Ba3 {[%clk 0:03:02]}  Rf7 {[%clk 0:02:02]} 17. bxc6 {[%clk 0:02:59]}  bxc6 {[%clk 0:02:02]} 18. Bb4 {[%clk 0:03:00]}  Rxa1 {[%clk 0:02:00]} 19. Qxa1 {[%clk 0:03:00]}  h6 {[%clk 0:01:54]} 20. Rc1 {[%clk 0:03:00]}  f4 {[%clk 0:01:45]} 21. Bf1 {[%clk 0:02:45]}  fxe3 {[%clk 0:01:40]} 22. fxe3 {[%clk 0:02:45]}  Ng4 {[%clk 0:01:40]} 23. Re1 {[%clk 0:02:45]}  Qh4 {[%clk 0:01:38]} 24. Bd6 {[%clk 0:02:36]}  Qf2+ {[%clk 0:01:36]} 25. Kh1 {[%clk 0:02:36]}  Qxd2 {[%clk 0:01:35]} 0-1


[Site "https://www.chess.com"]

[Event "Titled Tuesday Blitz April 26 Early 2022"]
[White "Ljukin, Sergei"]
[Black "Mirzoev, Azer"]
[WhiteFideId "14102200"]
[BlackFideId "13400304"]
[WhiteElo "2312"]
[BlackElo "2525"]
[Result "0-1"]
[Round "07"]
[TimeControl "180+1"]
[Date "2022.04.26"]
[WhiteClock "0:00:01"]
[BlackClock "0:00:03"]

1. e4 {[%clk 0:02:52]}  c6 {[%clk 0:03:00]} 2. d4 {[%clk 0:02:51]}  d5 {[%clk 0:03:01]} 3. e5 {[%clk 0:02:52]}  Bf5 {[%clk 0:03:01]} 4. Nd2 {[%clk 0:02:52]}  e6 {[%clk 0:02:59]} 5. Nb3 {[%clk 0:02:52]}  Nd7 {[%clk 0:02:58]} 6. Nf3 {[%clk 0:02:53]}  Ne7 {[%clk 0:02:56]} 7. Be2 {[%clk 0:02:53]}  h6 {[%clk 0:02:50]} 8. O-O {[%clk 0:02:53]}  Bh7 {[%clk 0:02:50]} 9. a4 {[%clk 0:02:53]}  Ng6 {[%clk 0:02:48]} 10. a5 {[%clk 0:02:51]}  a6 {[%clk 0:02:48]} 11. Be3 {[%clk 0:02:46]}  Be7 {[%clk 0:02:42]} 12. c4 {[%clk 0:02:44]}  O-O {[%clk 0:02:43]} 13. Nfd2 {[%clk 0:02:44]}  Nh4 {[%clk 0:02:39]} 14. f4 {[%clk 0:02:42]}  Rc8 {[%clk 0:02:15]} 15. Bf2 {[%clk 0:02:34]}  Ng6 {[%clk 0:02:09]} 16. g3 {[%clk 0:02:26]}  Kh8 {[%clk 0:02:04]} 17. Rc1 {[%clk 0:02:22]}  f6 {[%clk 0:02:01]} 18. f5 {[%clk 0:02:15]}  exf5 {[%clk 0:01:42]} 19. e6 {[%clk 0:02:15]}  Nb8 {[%clk 0:01:42]} 20. Bd3 {[%clk 0:02:02]}  f4 {[%clk 0:01:40]} 21. g4 {[%clk 0:02:00]}  Re8 {[%clk 0:01:08]} 22. Qc2 {[%clk 0:01:34]}  Nf8 {[%clk 0:01:07]} 23. Bxh7 {[%clk 0:01:25]}  Nxh7 {[%clk 0:01:08]} 24. Qf5 {[%clk 0:01:17]}  Bb4 {[%clk 0:01:00]} 25. Nf3 {[%clk 0:00:56]}  Nf8 {[%clk 0:00:56]} 26. Nc5 {[%clk 0:00:26]}  Bxc5 {[%clk 0:00:54]} 27. dxc5 {[%clk 0:00:26]}  Nxe6 {[%clk 0:00:47]} 28. Rcd1 {[%clk 0:00:25]}  Ng5 {[%clk 0:00:37]} 29. Nxg5 {[%clk 0:00:23]}  fxg5 {[%clk 0:00:36]} 30. cxd5 {[%clk 0:00:23]}  cxd5 {[%clk 0:00:36]} 31. Rxd5 {[%clk 0:00:23]}  Qc7 {[%clk 0:00:32]} 32. Bd4 {[%clk 0:00:20]}  Rcd8 {[%clk 0:00:29]} 33. Rxd8 {[%clk 0:00:16]}  Rxd8 {[%clk 0:00:28]} 34. Bc3 {[%clk 0:00:17]}  Nc6 {[%clk 0:00:26]} 35. Re1 {[%clk 0:00:14]}  Kg8 {[%clk 0:00:19]} 36. Re6 {[%clk 0:00:13]}  Rf8 {[%clk 0:00:17]} 37. Qe4 {[%clk 0:00:11]}  Qd7 {[%clk 0:00:14]} 38. Rxh6 {[%clk 0:00:08]}  Qxg4+ {[%clk 0:00:11]} 39. Kh1 {[%clk 0:00:07]}  Qf5 {[%clk 0:00:09]} 40. Qxf5 {[%clk 0:00:05]}  Rxf5 {[%clk 0:00:08]} 41. Rd6 {[%clk 0:00:05]}  Rxc5 {[%clk 0:00:08]} 42. Rd7 {[%clk 0:00:05]}  Ne5 {[%clk 0:00:07]} 43. Rxb7 {[%clk 0:00:04]}  Nf3 {[%clk 0:00:04]} 44. Kg2 {[%clk 0:00:04]}  Nh4+ {[%clk 0:00:04]} 45. Kf2 {[%clk 0:00:03]}  Nf5 {[%clk 0:00:04]} 46. Rb6 {[%clk 0:00:03]}  Rd5 {[%clk 0:00:03]} 47. Rxa6 {[%clk 0:00:03]}  g4 {[%clk 0:00:03]} 48. Rb6 {[%clk 0:00:02]}  g3+ {[%clk 0:00:03]} 49. hxg3 {[%clk 0:00:03]}  fxg3+ {[%clk 0:00:03]} 50. Kf3 {[%clk 0:00:03]}  Rd3+ {[%clk 0:00:03]} 51. Kg2 {[%clk 0:00:03]}  Nh4+ {[%clk 0:00:03]} 52. Kh3 {[%clk 0:00:01]}  g2+ {[%clk 0:00:03]} 0-1


[Site "https://www.chess.com"]

[Event "Titled Tuesday Blitz April 26 Early 2022"]
[White "Lopez, Henry"]
[Black "Atakhan, Abtin"]
[WhiteFideId "5203830"]
[BlackFideId "22502203"]
[WhiteElo "2177"]
[BlackElo "2094"]
[Result "0-1"]
[Round "07"]
[TimeControl "180+1"]
[Date "2022.04.26"]
[WhiteClock "0:00:05"]
[BlackClock "0:00:28"]

1. d4 {[%clk 0:03:00]}  Nf6 {[%clk 0:02:59]} 2. Nf3 {[%clk 0:03:00]}  g6 {[%clk 0:03:00]} 3. c4 {[%clk 0:02:59]}  Bg7 {[%clk 0:03:00]} 4. Nc3 {[%clk 0:03:00]}  d5 {[%clk 0:03:01]} 5. h4 {[%clk 0:02:59]}  c6 {[%clk 0:02:57]} 6. cxd5 {[%clk 0:02:56]}  cxd5 {[%clk 0:02:58]} 7. Bf4 {[%clk 0:02:55]}  O-O {[%clk 0:02:58]} 8. e3 {[%clk 0:02:54]}  a6 {[%clk 0:02:58]} 9. Rc1 {[%clk 0:02:53]}  Nc6 {[%clk 0:02:59]} 10. Be2 {[%clk 0:02:53]}  Bg4 {[%clk 0:02:59]} 11. Ne5 {[%clk 0:02:52]}  Bxe2 {[%clk 0:02:57]} 12. Qxe2 {[%clk 0:02:51]}  Nh5 {[%clk 0:02:58]} 13. Bh2 {[%clk 0:02:46]}  Nxe5 {[%clk 0:02:58]} 14. dxe5 {[%clk 0:02:46]}  d4 {[%clk 0:02:58]} 15. Rd1 {[%clk 0:02:45]}  f6 {[%clk 0:02:32]} 16. g4 {[%clk 0:02:20]}  fxe5 {[%clk 0:02:31]} 17. gxh5 {[%clk 0:02:19]}  Qa5 {[%clk 0:02:32]} 18. Qc4+ {[%clk 0:02:09]}  Kh8 {[%clk 0:02:31]} 19. Qa4 {[%clk 0:02:01]}  Qb6 {[%clk 0:02:23]} 20. Nd5 {[%clk 0:01:47]}  Qxb2 {[%clk 0:02:23]} 21. O-O {[%clk 0:01:46]}  Qe2 {[%clk 0:02:18]} 22. hxg6 {[%clk 0:01:40]}  Qg4+ {[%clk 0:02:19]} 23. Bg3 {[%clk 0:01:39]}  Rf3 {[%clk 0:02:13]} 24. Kh2 {[%clk 0:01:28]}  Raf8 {[%clk 0:02:00]} 25. exd4 {[%clk 0:00:56]}  exd4 {[%clk 0:01:44]} 26. Rde1 {[%clk 0:00:53]}  e5 {[%clk 0:01:40]} 27. gxh7 {[%clk 0:00:39]}  e4 {[%clk 0:01:38]} 28. Qc4 {[%clk 0:00:33]}  e3 {[%clk 0:01:32]} 29. Nxe3 {[%clk 0:00:33]}  Rxf2+ {[%clk 0:01:16]} 30. Rxf2 {[%clk 0:00:19]}  Rxf2+ {[%clk 0:01:16]} 31. Ng2 {[%clk 0:00:15]}  Rf8 {[%clk 0:01:01]} 32. Qd3 {[%clk 0:00:12]}  b5 {[%clk 0:00:41]} 33. Re4 {[%clk 0:00:11]}  Qg6 {[%clk 0:00:41]} 34. Rxd4 {[%clk 0:00:10]}  Qf7 {[%clk 0:00:38]} 35. Rd7 {[%clk 0:00:10]}  Qxa2 {[%clk 0:00:36]} 36. Qg6 {[%clk 0:00:10]}  Qb2 {[%clk 0:00:36]} 37. h5 {[%clk 0:00:09]}  Qf6 {[%clk 0:00:33]} 38. Nf4 {[%clk 0:00:05]}  Qb2+ {[%clk 0:00:30]} 39. Kh3 {[%clk 0:00:05]}  Qa1 {[%clk 0:00:28]} 0-1


[Site "https://www.chess.com"]